[Event "Titled Tuesday Blitz April 4 Early 2023"]
[White "Yeletsky, Ivan"]
[Black "Duda, Jan-Krzysztof"]
[WhiteFideId "24180327"]
[BlackFideId "1170546"]
[WhiteElo "2422"]
[BlackElo "2790"]
[Result "0-1"]
[Round "06"]
[TimeControl "180+2"]
[Date "2023.04.04"]
[WhiteClock "0:00:02"]
[BlackClock "0:00:11"]

1. e4 {[%clk 0:03:00]}  c5 {[%clk 0:02:59]} 2. Nf3 {[%clk 0:03:00]}  d6 {[%clk 0:02:59]} 3. d4 {[%clk 0:03:00]}  cxd4 {[%clk 0:03:00]} 4. Nxd4 {[%clk 0:03:01]}  Nf6 {[%clk 0:03:00]} 5. Nc3 {[%clk 0:03:02]}  a6 {[%clk 0:03:00]} 6. Rg1 {[%clk 0:03:00]}  h5 {[%clk 0:02:58]} 7. h3 {[%clk 0:02:55]}  e5 {[%clk 0:02:52]} 8. Nb3 {[%clk 0:02:54]}  h4 {[%clk 0:02:51]} 9. g4 {[%clk 0:02:49]}  hxg3 {[%clk 0:02:50]} 10. Rxg3 {[%clk 0:02:50]}  Be6 {[%clk 0:02:49]} 11. Bg5 {[%clk 0:02:45]}  Nbd7 {[%clk 0:02:48]} 12. Qd2 {[%clk 0:02:37]}  b5 {[%clk 0:02:47]} 13. a3 {[%clk 0:02:11]}  Rc8 {[%clk 0:02:47]} 14. Bd3 {[%clk 0:01:46]}  Be7 {[%clk 0:02:43]} 15. O-O-O {[%clk 0:01:46]}  Nh5 {[%clk 0:02:43]} 16. Rgg1 {[%clk 0:01:37]}  Bxg5 {[%clk 0:02:38]} 17. Rxg5 {[%clk 0:01:38]}  g6 {[%clk 0:02:23]} 18. Kb1 {[%clk 0:01:34]}  Rxc3 {[%clk 0:02:17]} 19. bxc3 {[%clk 0:01:30]}  Nf4 {[%clk 0:02:17]} 20. Rg3 {[%clk 0:01:29]}  Qc7 {[%clk 0:02:17]} 21. Bf1 {[%clk 0:01:07]}  Ke7 {[%clk 0:02:16]} 22. Rf3 {[%clk 0:00:59]}  g5 {[%clk 0:02:01]} 23. Rg3 {[%clk 0:00:50]}  f6 {[%clk 0:02:01]} 24. Be2 {[%clk 0:00:50]}  Nb6 {[%clk 0:01:59]} 25. Bg4 {[%clk 0:00:48]}  Nc4 {[%clk 0:01:56]} 26. Qc1 {[%clk 0:00:48]}  Bxg4 {[%clk 0:01:56]} 27. hxg4 {[%clk 0:00:48]}  Ne2 {[%clk 0:01:56]} 28. Rh1 {[%clk 0:00:43]}  Nxa3+ {[%clk 0:01:48]} 29. Kb2 {[%clk 0:00:31]}  Nc4+ {[%clk 0:01:43]} 30. Kb1 {[%clk 0:00:32]}  Nxc1 {[%clk 0:01:28]} 31. Rxh8 {[%clk 0:00:32]}  Nxb3 {[%clk 0:01:28]} 32. Rh7+ {[%clk 0:00:31]}  Kd8 {[%clk 0:01:22]} 33. Rh8+ {[%clk 0:00:29]}  Kd7 {[%clk 0:01:22]} 34. Rh7+ {[%clk 0:00:30]}  Kc6 {[%clk 0:01:16]} 35. Rxc7+ {[%clk 0:00:30]}  Kxc7 {[%clk 0:01:17]} 36. cxb3 {[%clk 0:00:31]}  Nd2+ {[%clk 0:01:17]} 37. Kc2 {[%clk 0:00:32]}  Nxe4 {[%clk 0:01:18]} 38. Rg2 {[%clk 0:00:28]}  d5 {[%clk 0:00:38]} 39. f3 {[%clk 0:00:28]}  Nc5 {[%clk 0:00:34]} 40. Rh2 {[%clk 0:00:29]}  Kd6 {[%clk 0:00:34]} 41. Rh6 {[%clk 0:00:23]}  Ke6 {[%clk 0:00:29]} 42. Rh7 {[%clk 0:00:23]}  e4 {[%clk 0:00:24]} 43. b4 {[%clk 0:00:23]}  Nd7 {[%clk 0:00:20]} 44. fxe4 {[%clk 0:00:22]}  dxe4 {[%clk 0:00:21]} 45. Kd2 {[%clk 0:00:15]}  Ne5 {[%clk 0:00:21]} 46. Ke3 {[%clk 0:00:14]}  Kd5 {[%clk 0:00:21]} 47. Ra7 {[%clk 0:00:11]}  Nxg4+ {[%clk 0:00:20]} 48. Ke2 {[%clk 0:00:12]}  f5 {[%clk 0:00:18]} 49. Rxa6 {[%clk 0:00:13]}  f4 {[%clk 0:00:19]} 50. Ra8 {[%clk 0:00:13]}  f3+ {[%clk 0:00:19]} 51. Kd2 {[%clk 0:00:05]}  e3+ {[%clk 0:00:19]} 52. Kd3 {[%clk 0:00:06]}  f2 {[%clk 0:00:12]} 53. Rd8+ {[%clk 0:00:02]}  Kc6 {[%clk 0:00:12]} 54. Rf8 {[%clk 0:00:02]}  Nh2 {[%clk 0:00:11]} 55. Rf6+ {[%clk 0:00:02]}  Kd7 {[%clk 0:00:10]} 56. Kxe3 {[%clk 0:00:01]}  Ng4+ {[%clk 0:00:10]} 57. Ke2 {[%clk 0:00:01]}  Nxf6 {[%clk 0:00:11]} 58. Kxf2 {[%clk 0:00:02]}  Ne4+ {[%clk 0:00:11]} 0-1


[Site "https://www.chess.com"]

[Event "Titled Tuesday Blitz April 4 Early 2023"]
[White "Lenderman, Aleksandr"]
[Black "Gokerkan, Cem Kaan"]
[WhiteFideId "2021285"]
[BlackFideId "6336760"]
[WhiteElo "2607"]
[BlackElo "2365"]
[Result "1-0"]
[Round "06"]
[TimeControl "180+2"]
[Date "2023.04.04"]
[WhiteClock "0:01:12"]
[BlackClock "0:00:04"]

1. Nf3 {[%clk 0:03:00]}  g6 {[%clk 0:02:59]} 2. e4 {[%clk 0:02:59]}  Bg7 {[%clk 0:02:59]} 3. d4 {[%clk 0:03:00]}  d6 {[%clk 0:02:59]} 4. Bc4 {[%clk 0:03:00]}  Nf6 {[%clk 0:02:58]} 5. Qe2 {[%clk 0:03:00]}  O-O {[%clk 0:02:58]} 6. O-O {[%clk 0:03:00]}  Bg4 {[%clk 0:02:51]} 7. h3 {[%clk 0:02:48]}  Bxf3 {[%clk 0:02:50]} 8. Qxf3 {[%clk 0:02:49]}  Nc6 {[%clk 0:02:51]} 9. c3 {[%clk 0:02:42]}  e5 {[%clk 0:02:51]} 10. Rd1 {[%clk 0:02:42]}  Qe7 {[%clk 0:02:46]} 11. d5 {[%clk 0:02:41]}  Nb8 {[%clk 0:02:42]} 12. Bf1 {[%clk 0:02:41]}  Nbd7 {[%clk 0:02:42]} 13. c4 {[%clk 0:02:42]}  Nh5 {[%clk 0:02:35]} 14. Nc3 {[%clk 0:02:41]}  a6 {[%clk 0:02:24]} 15. g3 {[%clk 0:02:39]}  Kh8 {[%clk 0:02:23]} 16. h4 {[%clk 0:02:39]}  Nhf6 {[%clk 0:02:23]} 17. Be3 {[%clk 0:02:36]}  Ng8 {[%clk 0:02:23]} 18. h5 {[%clk 0:02:35]}  Bh6 {[%clk 0:02:21]} 19. Bh3 {[%clk 0:02:29]}  Bxe3 {[%clk 0:02:21]} 20. Qxe3 {[%clk 0:02:28]}  Kg7 {[%clk 0:02:21]} 21. Kg2 {[%clk 0:02:24]}  f5 {[%clk 0:02:16]} 22. hxg6 {[%clk 0:02:23]}  hxg6 {[%clk 0:02:16]} 23. Rh1 {[%clk 0:02:23]}  f4 {[%clk 0:02:15]} 24. Qd2 {[%clk 0:02:20]}  Nh6 {[%clk 0:01:58]} 25. Bxd7 {[%clk 0:02:14]}  Qxd7 {[%clk 0:01:57]} 26. f3 {[%clk 0:02:14]}  Qe7 {[%clk 0:01:39]} 27. Ne2 {[%clk 0:02:10]}  b5 {[%clk 0:01:26]} 28. gxf4 {[%clk 0:02:02]}  exf4 {[%clk 0:01:26]} 29. Nd4 {[%clk 0:02:02]}  Rf6 {[%clk 0:01:15]} 30. Ne6+ {[%clk 0:02:01]}  Rxe6 {[%clk 0:01:16]} 31. dxe6 {[%clk 0:02:02]}  Qg5+ {[%clk 0:01:13]} 32. Kf1 {[%clk 0:02:01]}  bxc4 {[%clk 0:01:07]} 33. Qd4+ {[%clk 0:01:56]}  Kg8 {[%clk 0:01:01]} 34. Ke2 {[%clk 0:01:52]}  Qg2+ {[%clk 0:00:31]} 35. Qf2 {[%clk 0:01:45]}  Qxf2+ {[%clk 0:00:31]} 36. Kxf2 {[%clk 0:01:46]}  Kg7 {[%clk 0:00:32]} 37. Rh4 {[%clk 0:01:46]}  Re8 {[%clk 0:00:17]} 38. Rah1 {[%clk 0:01:44]}  Ng8 {[%clk 0:00:17]} 39. Rh7+ {[%clk 0:01:39]}  Kf6 {[%clk 0:00:17]} 40. Rxc7 {[%clk 0:01:38]}  Rxe6 {[%clk 0:00:16]} 41. Rh8 {[%clk 0:01:33]}  Ne7 {[%clk 0:00:16]} 42. Rf8+ {[%clk 0:01:32]}  Ke5 {[%clk 0:00:16]} 43. Re8 {[%clk 0:01:29]}  Kf6 {[%clk 0:00:16]} 44. Rxc4 {[%clk 0:01:28]}  Kf7 {[%clk 0:00:16]} 45. Rd8 {[%clk 0:01:27]}  g5 {[%clk 0:00:16]} 46. Rd4 {[%clk 0:01:24]}  Nc6 {[%clk 0:00:16]} 47. Rd7+ {[%clk 0:01:24]}  Ke8 {[%clk 0:00:08]} 48. R4xd6 {[%clk 0:01:24]}  Re5 {[%clk 0:00:08]} 49. Rh7 {[%clk 0:01:18]}  Ne7 {[%clk 0:00:05]} 50. Rxa6 {[%clk 0:01:18]}  Rb5 {[%clk 0:00:01]} 51. Ra8+ {[%clk 0:01:16]}  Kd7 {[%clk 0:00:02]} 52. Ra7+ {[%clk 0:01:17]}  Rb7 {[%clk 0:00:01]} 53. Rxb7+ {[%clk 0:01:16]}  Kd6 {[%clk 0:00:01]} 54. Rhxe7 {[%clk 0:01:16]}  g4 {[%clk 0:00:02]} 55. fxg4 {[%clk 0:01:15]}  f3 {[%clk 0:00:02]} 56. Kxf3 {[%clk 0:01:15]}  Kc5 {[%clk 0:00:03]} 57. Red7 {[%clk 0:01:14]}  Kc4 {[%clk 0:00:04]} 58. e5 {[%clk 0:01:12]} 1-0


[Site "https://www.chess.com"]

[Event "Titled Tuesday Blitz April 4 Early 2023"]
[White "Kilic, Eray"]
[Black "Movahed, Sina"]
[WhiteFideId "44517173"]
[BlackFideId "42520835"]
[WhiteElo "2328"]
[BlackElo "2225"]
[Result "1-0"]
[Round "06"]
[TimeControl "180+2"]
[Date "2023.04.04"]
[WhiteClock "0:00:13"]
[BlackClock "0:00:03"]

1. d4 {[%clk 0:03:00]}  Nf6 {[%clk 0:02:58]} 2. Nc3 {[%clk 0:03:01]}  d5 {[%clk 0:02:57]} 3. Bf4 {[%clk 0:03:01]}  g6 {[%clk 0:02:55]} 4. e3 {[%clk 0:03:00]}  Bg7 {[%clk 0:02:53]} 5. Nb5 {[%clk 0:03:00]}  Na6 {[%clk 0:02:52]} 6. h3 {[%clk 0:03:00]}  O-O {[%clk 0:02:52]} 7. Nf3 {[%clk 0:02:57]}  c6 {[%clk 0:02:51]} 8. Nc3 {[%clk 0:02:57]}  Nc7 {[%clk 0:02:48]} 9. Bd3 {[%clk 0:02:56]}  a5 {[%clk 0:02:26]} 10. Qe2 {[%clk 0:02:42]}  b5 {[%clk 0:02:22]} 11. O-O {[%clk 0:02:14]}  b4 {[%clk 0:02:04]} 12. Na4 {[%clk 0:02:14]}  Nd7 {[%clk 0:02:04]} 13. Rfd1 {[%clk 0:01:50]}  Ne6 {[%clk 0:01:57]} 14. Bh2 {[%clk 0:01:46]}  c5 {[%clk 0:01:53]} 15. Bb5 {[%clk 0:01:24]}  cxd4 {[%clk 0:01:41]} 16. exd4 {[%clk 0:01:22]}  Nb6 {[%clk 0:01:41]} 17. c3 {[%clk 0:01:14]}  Nxa4 {[%clk 0:01:34]} 18. Bxa4 {[%clk 0:01:15]}  bxc3 {[%clk 0:01:34]} 19. bxc3 {[%clk 0:01:15]}  Ba6 {[%clk 0:01:35]} 20. Qe1 {[%clk 0:01:15]}  Rc8 {[%clk 0:01:12]} 21. Ne5 {[%clk 0:01:14]}  Bf6 {[%clk 0:01:02]} 22. Nd7 {[%clk 0:01:09]}  Bg7 {[%clk 0:00:57]} 23. Nxf8 {[%clk 0:01:08]}  Nxf8 {[%clk 0:00:58]} 24. Be5 {[%clk 0:01:07]}  Bh6 {[%clk 0:00:55]} 25. Rab1 {[%clk 0:01:04]}  Ne6 {[%clk 0:00:45]} 26. Rb2 {[%clk 0:01:03]}  Bc4 {[%clk 0:00:41]} 27. Bb3 {[%clk 0:00:58]}  f6 {[%clk 0:00:27]} 28. Bxc4 {[%clk 0:00:52]}  Rxc4 {[%clk 0:00:27]} 29. Bxf6 {[%clk 0:00:46]}  Kf7 {[%clk 0:00:24]} 30. Be5 {[%clk 0:00:45]}  Qc8 {[%clk 0:00:24]} 31. Rd3 {[%clk 0:00:45]}  Ng5 {[%clk 0:00:20]} 32. h4 {[%clk 0:00:41]}  Ne4 {[%clk 0:00:19]} 33. Rf3+ {[%clk 0:00:41]}  Ke6 {[%clk 0:00:16]} 34. Rb6+ {[%clk 0:00:41]}  Rc6 {[%clk 0:00:16]} 35. Rb8 {[%clk 0:00:30]}  Qa6 {[%clk 0:00:14]} 36. Bf4 {[%clk 0:00:18]}  Bg7 {[%clk 0:00:11]} 37. Re3 {[%clk 0:00:18]}  Kf5 {[%clk 0:00:07]} 38. Be5 {[%clk 0:00:17]}  Bxe5 {[%clk 0:00:06]} 39. dxe5 {[%clk 0:00:18]}  Ke6 {[%clk 0:00:06]} 40. f3 {[%clk 0:00:17]}  Nc5 {[%clk 0:00:05]} 41. Qg3 {[%clk 0:00:17]}  Qc4 {[%clk 0:00:04]} 42. Qh3+ {[%clk 0:00:16]}  Kf7 {[%clk 0:00:03]} 43. h5 {[%clk 0:00:13]} 1-0


[Site "https://www.chess.com"]

[Event "Titled Tuesday Blitz April 4 Early 2023"]
[White "Hovhannisyan, Robert"]
[Black "Flores, Diego"]
[WhiteFideId "13302507"]
[BlackFideId "108049"]
[WhiteElo "2570"]
[BlackElo "2613"]
[Result "0-1"]
[Round "06"]
[TimeControl "180+2"]
[Date "2023.04.04"]
[WhiteClock "0:00:01"]
[BlackClock "0:00:18"]

1. e4 {[%clk 0:03:00]}  c5 {[%clk 0:02:57]} 2. Nf3 {[%clk 0:02:59]}  e6 {[%clk 0:02:58]} 3. g3 {[%clk 0:02:54]}  Nc6 {[%clk 0:02:53]} 4. Bg2 {[%clk 0:02:50]}  Nf6 {[%clk 0:02:53]} 5. Qe2 {[%clk 0:02:47]}  d6 {[%clk 0:02:53]} 6. O-O {[%clk 0:02:38]}  Be7 {[%clk 0:02:53]} 7. e5 {[%clk 0:02:39]}  dxe5 {[%clk 0:02:52]} 8. Nxe5 {[%clk 0:02:39]}  Nd4 {[%clk 0:02:39]} 9. Qd1 {[%clk 0:02:39]}  Nd7 {[%clk 0:02:39]} 10. Nc4 {[%clk 0:02:30]}  Nb6 {[%clk 0:02:18]} 11. d3 {[%clk 0:02:25]}  O-O {[%clk 0:02:15]} 12. a4 {[%clk 0:02:21]}  Nxc4 {[%clk 0:02:00]} 13. dxc4 {[%clk 0:02:21]}  Nc6 {[%clk 0:01:21]} 14. Nc3 {[%clk 0:01:58]}  Na5 {[%clk 0:01:17]} 15. b3 {[%clk 0:01:53]}  Bf6 {[%clk 0:01:15]} 16. Bb2 {[%clk 0:01:49]}  Bd7 {[%clk 0:01:16]} 17. Qe2 {[%clk 0:01:45]}  Bc6 {[%clk 0:01:16]} 18. Rad1 {[%clk 0:01:32]}  Qe7 {[%clk 0:01:16]} 19. Rd3 {[%clk 0:01:19]}  Bxg2 {[%clk 0:01:15]} 20. Kxg2 {[%clk 0:01:20]}  Nc6 {[%clk 0:01:15]} 21. Rfd1 {[%clk 0:01:09]}  Rad8 {[%clk 0:01:13]} 22. Qe4 {[%clk 0:00:55]}  Rxd3 {[%clk 0:01:05]} 23. Rxd3 {[%clk 0:00:56]}  Rd8 {[%clk 0:01:05]} 24. Nd1 {[%clk 0:00:55]}  Bd4 {[%clk 0:00:45]} 25. Bxd4 {[%clk 0:00:45]}  cxd4 {[%clk 0:00:45]} 26. c3 {[%clk 0:00:40]}  f5 {[%clk 0:00:44]} 27. Qe2 {[%clk 0:00:39]}  e5 {[%clk 0:00:41]} 28. Rd2 {[%clk 0:00:22]}  Qe6 {[%clk 0:00:34]} 29. Kg1 {[%clk 0:00:15]}  e4 {[%clk 0:00:33]} 30. Qf1 {[%clk 0:00:07]}  Ne5 {[%clk 0:00:32]} 31. Kh1 {[%clk 0:00:06]}  Nf3 {[%clk 0:00:32]} 32. Ra2 {[%clk 0:00:05]}  d3 {[%clk 0:00:30]} 33. Ne3 {[%clk 0:00:05]}  Qh6 {[%clk 0:00:28]} 34. h4 {[%clk 0:00:05]}  Qe6 {[%clk 0:00:25]} 35. Ra1 {[%clk 0:00:04]}  d2 {[%clk 0:00:24]} 36. Rd1 {[%clk 0:00:05]}  Rd3 {[%clk 0:00:23]} 37. Qh3 {[%clk 0:00:04]}  g6 {[%clk 0:00:20]} 38. Nd5 {[%clk 0:00:04]}  Qe5 {[%clk 0:00:19]} 39. h5 {[%clk 0:00:02]}  Kg7 {[%clk 0:00:18]} 40. hxg6 {[%clk 0:00:03]}  hxg6 {[%clk 0:00:19]} 41. Kg2 {[%clk 0:00:01]}  Ne1+ {[%clk 0:00:18]} 0-1


[Site "https://www.chess.com"]

[Event "Titled Tuesday Blitz April 4 Early 2023"]
[White "Drygalov, Andrey"]
[Black "Cherniaiev, Tykhon"]
[WhiteFideId "24171735"]
[BlackFideId "14182360"]
[WhiteElo "2466"]
[BlackElo "2450"]
[Result "1-0"]
[Round "06"]
[TimeControl "180+2"]
[Date "2023.04.04"]
[WhiteClock "0:00:06"]
[BlackClock "0:00:02"]

1. e4 {[%clk 0:03:00]}  e5 {[%clk 0:02:57]} 2. Nf3 {[%clk 0:02:56]}  Nc6 {[%clk 0:02:57]} 3. Bc4 {[%clk 0:02:55]}  Nf6 {[%clk 0:02:57]} 4. d3 {[%clk 0:02:55]}  Bc5 {[%clk 0:02:57]} 5. O-O {[%clk 0:02:55]}  O-O {[%clk 0:02:57]} 6. Re1 {[%clk 0:02:56]}  d6 {[%clk 0:02:57]} 7. c3 {[%clk 0:02:56]}  a6 {[%clk 0:02:58]} 8. a4 {[%clk 0:02:56]}  Ba7 {[%clk 0:02:50]} 9. Nbd2 {[%clk 0:02:54]}  Na5 {[%clk 0:02:47]} 10. Ba2 {[%clk 0:02:53]}  Be6 {[%clk 0:02:44]} 11. Bxe6 {[%clk 0:02:32]}  fxe6 {[%clk 0:02:45]} 12. Nf1 {[%clk 0:02:32]}  c5 {[%clk 0:02:24]} 13. Ng3 {[%clk 0:02:30]}  Qd7 {[%clk 0:02:20]} 14. h3 {[%clk 0:02:28]}  Nc6 {[%clk 0:02:18]} 15. Be3 {[%clk 0:02:15]}  h6 {[%clk 0:01:49]} 16. d4 {[%clk 0:02:11]}  cxd4 {[%clk 0:01:21]} 17. cxd4 {[%clk 0:02:11]}  exd4 {[%clk 0:01:22]} 18. Nxd4 {[%clk 0:02:11]}  Nxd4 {[%clk 0:01:20]} 19. Bxd4 {[%clk 0:02:11]}  Bxd4 {[%clk 0:01:21]} 20. Qxd4 {[%clk 0:02:11]}  Rac8 {[%clk 0:01:16]} 21. Rad1 {[%clk 0:02:11]}  Rfd8 {[%clk 0:01:13]} 22. Qb4 {[%clk 0:01:55]}  Qc6 {[%clk 0:00:56]} 23. Rd2 {[%clk 0:01:54]}  b5 {[%clk 0:00:34]} 24. Red1 {[%clk 0:01:45]}  bxa4 {[%clk 0:00:31]} 25. Rxd6 {[%clk 0:01:32]}  Rxd6 {[%clk 0:00:32]} 26. Rxd6 {[%clk 0:01:32]}  Qc1+ {[%clk 0:00:31]} 27. Kh2 {[%clk 0:01:27]}  Qf4 {[%clk 0:00:32]} 28. Qd2 {[%clk 0:01:14]}  Qxd2 {[%clk 0:00:25]} 29. Rxd2 {[%clk 0:01:14]}  Rb8 {[%clk 0:00:26]} 30. f3 {[%clk 0:01:13]}  Rb4 {[%clk 0:00:21]} 31. Ne2 {[%clk 0:01:12]}  Kf7 {[%clk 0:00:18]} 32. Nd4 {[%clk 0:01:12]}  Rc4 {[%clk 0:00:15]} 33. b3 {[%clk 0:00:38]}  axb3 {[%clk 0:00:15]} 34. Nxb3 {[%clk 0:00:39]}  Ke7 {[%clk 0:00:14]} 35. Ra2 {[%clk 0:00:39]}  Rc6 {[%clk 0:00:13]} 36. Na5 {[%clk 0:00:39]}  Rb6 {[%clk 0:00:12]} 37. Nc4 {[%clk 0:00:39]}  Rc6 {[%clk 0:00:12]} 38. Ne5 {[%clk 0:00:39]}  Rb6 {[%clk 0:00:10]} 39. Rc2 {[%clk 0:00:40]}  Ne8 {[%clk 0:00:05]} 40. Kg3 {[%clk 0:00:36]}  Rb5 {[%clk 0:00:03]} 41. Ng6+ {[%clk 0:00:20]}  Kf7 {[%clk 0:00:03]} 42. Nf4 {[%clk 0:00:19]}  a5 {[%clk 0:00:04]} 43. Nd3 {[%clk 0:00:20]}  a4 {[%clk 0:00:03]} 44. Ra2 {[%clk 0:00:20]}  Ra5 {[%clk 0:00:04]} 45. Nb2 {[%clk 0:00:20]}  Nf6 {[%clk 0:00:02]} 46. Rxa4 {[%clk 0:00:20]}  Rb5 {[%clk 0:00:03]} 47. Nd3 {[%clk 0:00:19]}  Rb3 {[%clk 0:00:02]} 48. Ne5+ {[%clk 0:00:19]}  Kg8 {[%clk 0:00:02]} 49. Ra8+ {[%clk 0:00:20]}  Kh7 {[%clk 0:00:02]} 50. Ra7 {[%clk 0:00:20]}  Nxe4+ {[%clk 0:00:03]} 51. Kh2 {[%clk 0:00:20]}  Nf6 {[%clk 0:00:03]} 52. Ra6 {[%clk 0:00:20]}  Re3 {[%clk 0:00:02]} 53. Rxe6 {[%clk 0:00:07]}  Nd7 {[%clk 0:00:03]} 54. f4 {[%clk 0:00:08]}  Nc5 {[%clk 0:00:04]} 55. Re7 {[%clk 0:00:07]}  Nd3 {[%clk 0:00:03]} 56. g3 {[%clk 0:00:05]}  Re2+ {[%clk 0:00:03]} 57. Kg1 {[%clk 0:00:05]}  Re1+ {[%clk 0:00:03]} 58. Kg2 {[%clk 0:00:05]}  Nc5 {[%clk 0:00:02]} 59. Kf2 {[%clk 0:00:05]}  Re4 {[%clk 0:00:01]} 60. Kf3 {[%clk 0:00:06]}  Re2 {[%clk 0:00:01]} 61. Kxe2 {[%clk 0:00:05]}  Ne4 {[%clk 0:00:01]} 62. Kf3 {[%clk 0:00:05]}  Nf6 {[%clk 0:00:01]} 63. Ra7 {[%clk 0:00:05]}  Nd5 {[%clk 0:00:02]} 64. g4 {[%clk 0:00:06]} 1-0


[Site "https://www.chess.com"]

[Event "Titled Tuesday Blitz April 4 Early 2023"]
[White "Csonka, Balazs"]
[Black "Ashraf, Artin"]
[WhiteFideId "742910"]
[BlackFideId "22514805"]
[WhiteElo "2404"]
[BlackElo "2188"]
[Result "1-0"]
[Round "06"]
[TimeControl "180+2"]
[Date "2023.04.04"]
[WhiteClock "0:00:03"]
[BlackClock "0:00:03"]

1. e4 {[%clk 0:02:59]}  c5 {[%clk 0:02:59]} 2. Nf3 {[%clk 0:02:57]}  d6 {[%clk 0:03:00]} 3. Bb5+ {[%clk 0:02:52]}  Bd7 {[%clk 0:02:52]} 4. Bxd7+ {[%clk 0:02:47]}  Qxd7 {[%clk 0:02:53]} 5. O-O {[%clk 0:02:46]}  Nc6 {[%clk 0:02:53]} 6. c3 {[%clk 0:02:44]}  Nf6 {[%clk 0:02:49]} 7. Qe2 {[%clk 0:02:44]}  e6 {[%clk 0:02:48]} 8. d4 {[%clk 0:02:44]}  cxd4 {[%clk 0:02:49]} 9. cxd4 {[%clk 0:02:45]}  d5 {[%clk 0:02:49]} 10. e5 {[%clk 0:02:45]}  Ne4 {[%clk 0:02:49]} 11. Nbd2 {[%clk 0:02:45]}  Nxd2 {[%clk 0:02:48]} 12. Bxd2 {[%clk 0:02:46]}  Be7 {[%clk 0:02:47]} 13. Rfe1 {[%clk 0:02:32]}  O-O {[%clk 0:02:46]} 14. h4 {[%clk 0:02:25]}  Rfc8 {[%clk 0:02:43]} 15. h5 {[%clk 0:02:22]}  Qd8 {[%clk 0:02:36]} 16. h6 {[%clk 0:02:03]}  g6 {[%clk 0:02:36]} 17. Rac1 {[%clk 0:02:02]}  Qb6 {[%clk 0:02:31]} 18. Bc3 {[%clk 0:01:52]}  Qa6 {[%clk 0:02:27]} 19. Qxa6 {[%clk 0:01:36]}  bxa6 {[%clk 0:02:28]} 20. Re2 {[%clk 0:01:14]}  Nb4 {[%clk 0:01:55]} 21. Ra1 {[%clk 0:01:09]}  Rab8 {[%clk 0:01:44]} 22. a3 {[%clk 0:00:50]}  Nc6 {[%clk 0:01:43]} 23. g4 {[%clk 0:00:50]}  a5 {[%clk 0:01:39]} 24. Kf1 {[%clk 0:00:49]}  a4 {[%clk 0:01:38]} 25. Ke1 {[%clk 0:00:49]}  Bf8 {[%clk 0:01:37]} 26. g5 {[%clk 0:00:49]}  Ne7 {[%clk 0:01:37]} 27. Rc2 {[%clk 0:00:43]}  Nf5 {[%clk 0:01:36]} 28. Rac1 {[%clk 0:00:39]}  Rb3 {[%clk 0:01:28]} 29. Nd2 {[%clk 0:00:33]}  Rb5 {[%clk 0:01:21]} 30. Ke2 {[%clk 0:00:31]}  Be7 {[%clk 0:01:17]} 31. f4 {[%clk 0:00:31]}  Kf8 {[%clk 0:01:17]} 32. Nf3 {[%clk 0:00:20]}  Ke8 {[%clk 0:01:14]} 33. Bd2 {[%clk 0:00:20]}  Rcb8 {[%clk 0:00:56]} 34. Rc8+ {[%clk 0:00:19]}  Rxc8 {[%clk 0:00:38]} 35. Rxc8+ {[%clk 0:00:20]}  Kd7 {[%clk 0:00:38]} 36. Rc2 {[%clk 0:00:21]}  Rb3 {[%clk 0:00:37]} 37. Bc3 {[%clk 0:00:19]}  Ng3+ {[%clk 0:00:37]} 38. Kd3 {[%clk 0:00:16]}  Nf5 {[%clk 0:00:21]} 39. Nd2 {[%clk 0:00:16]}  Rb7 {[%clk 0:00:21]} 40. Ba5 {[%clk 0:00:10]}  Ng3 {[%clk 0:00:17]} 41. Ke3 {[%clk 0:00:04]}  Bd8 {[%clk 0:00:15]} 42. Bxd8 {[%clk 0:00:04]}  Kxd8 {[%clk 0:00:16]} 43. Kd3 {[%clk 0:00:04]}  Nh5 {[%clk 0:00:11]} 44. Ke3 {[%clk 0:00:04]}  Ng3 {[%clk 0:00:12]} 45. Kd3 {[%clk 0:00:03]}  Nf5 {[%clk 0:00:12]} 46. Rc5 {[%clk 0:00:03]}  Rxb2 {[%clk 0:00:10]} 47. Ra5 {[%clk 0:00:03]}  Rb7 {[%clk 0:00:08]} 48. Rxa4 {[%clk 0:00:03]}  Kc7 {[%clk 0:00:08]} 49. Kc3 {[%clk 0:00:03]}  Kc6 {[%clk 0:00:06]} 50. Nb3 {[%clk 0:00:03]}  Kb6 {[%clk 0:00:04]} 51. Nc5 {[%clk 0:00:03]}  Rc7 {[%clk 0:00:04]} 52. Kb4 {[%clk 0:00:02]}  a5+ {[%clk 0:00:01]} 53. Rxa5 {[%clk 0:00:02]}  Ra7 {[%clk 0:00:02]} 54. Rb5+ {[%clk 0:00:02]}  Kc6 {[%clk 0:00:02]} 55. Nb3 {[%clk 0:00:02]}  Ne3 {[%clk 0:00:03]} 56. Rc5+ {[%clk 0:00:02]}  Kd7 {[%clk 0:00:04]} 57. a4 {[%clk 0:00:02]}  Rb7+ {[%clk 0:00:04]} 58. Rb5 {[%clk 0:00:03]}  Rc7 {[%clk 0:00:04]} 59. Nc5+ {[%clk 0:00:03]}  Ke7 {[%clk 0:00:04]} 60. a5 {[%clk 0:00:03]}  Nc2+ {[%clk 0:00:04]} 61. Kc3 {[%clk 0:00:04]}  Na3 {[%clk 0:00:05]} 62. Rb3 {[%clk 0:00:03]}  Nc4 {[%clk 0:00:05]} 63. a6 {[%clk 0:00:03]}  Kd8 {[%clk 0:00:05]} 64. Rb8+ {[%clk 0:00:03]}  Ke7 {[%clk 0:00:05]} 65. Rb7 {[%clk 0:00:03]}  Kd8 {[%clk 0:00:05]} 66. a7 {[%clk 0:00:03]}  Rc8 {[%clk 0:00:03]} 67. Rb8 {[%clk 0:00:03]}  Nb6 {[%clk 0:00:03]} 68. Rxb6 {[%clk 0:00:03]} 1-0


[Site "https://www.chess.com"]